Cogmind - Beta 11 X8 @@@ ROGUE MODE // 2021.12.15 @ 21:48:49 Player: btmk16 Result: Self-destructed Performance ------------- Evolutions (6) 3000 Regions Visited (9) 1800 Robots Destroyed (131) 655 Value Destroyed (4659) 4659 Prototype IDs (4) 80 Alien Tech Used (0) 0 Bonus (261) 261 TOTAL SCORE: 10455 Bonus ------- High Alert Combat Kills 209 Follower Combat Kills 52 Cogmind --------- Core Integrity 687/1150 Matter 265/300 Energy 20/100 System Corruption 3% Temperature Cool (0) Movement Core (100) Ox1 Location -4/Factory Parts ------- > --- POWER (2) -------- (None) > --- PROPULSION (6) --- Faulty Biomechanical Wings > --- UTILITY (6) ------ Advanced Heat Sink > --- WEAPON (5) ------- Falx > --- INVENTORY (5) ---- Advanced Shield Generator Advanced Shield Generator Disruptor Cannon Improved Remote Datajack Peak State ------------ > --- POWER ------------ Light Angular Momentum Engine Micro Fission Core > --- PROPULSION ------- Improved Treads Improved Treads Armored Huge Wheel Armored Huge Wheel > --- UTILITY ---------- Advanced Heat Sink Advanced Heat Sink Huge Storage Unit Advanced Terrain Scanner Transport Network Coupler Hacking Suite > --- WEAPON ----------- Wave Gun Disruptor Cannon Disruptor Cannon KE Penetrator Assault Cannon > --- INVENTORY -------- Micro Nuclear Core Improved Treads Carbon-fiber Leg Carbon-fiber Leg Carbon-fiber Leg Flexi-carbon Leg Biomechanical Wings Advanced Heat Sink Advanced Shield Generator Advanced Shield Generator Disruptor Cannon Disruptor Cannon Flak Gun Heavy Flak Cannon Improved Remote Datajack Falx Falx [Rating: 86] Favorites ----------- Power Micro Nuclear Core Engine Ion Engine Power Core Micro Nuclear Core Reactor Light Antimatter Reactor Propulsion Armored Huge Wheel Treads Improved Treads Leg Flexi-carbon Leg Wheel Armored Huge Wheel Flight Unit Biomechanical Wings Utility Huge Storage Unit Device Advanced Heat Sink Storage Huge Storage Unit Processor Transport Network Coupler Hackware Hacking Suite Protection Hardened Medium Armor Plating Weapon High-powered Electrolaser Energy Gun High-powered Electrolaser Energy Cannon Plasma Cannon Ballistic Gun Gauss Rifle Ballistic Cannon Assault Cannon Slashing Weapon Scythe Build | -11 -10 -9 -8 -7 -7 -7 -6 -5 -4 ------- Run | Scr Mat Mat Mat Fac Was Fac Fac Fac Fac Slots Evolved 12 | . . 2 2 2 . . 2 2 2 Power 1 | . . . . . . . . . 1 Propulsion 4 | . . . 1 1 . . 2 . . Utility 4 | . . . 1 1 . . . 2 . Weapon 3 | . . 2 . . . . . . 1 Parts Attached 116 | . 6 15 7 18 2 27 9 13 19 Power 14 | . 1 2 . 2 . 4 . 1 4 Engine 7 | . . 1 . 2 . 3 . . 1 Core 5 | . 1 1 . . . 1 . 1 1 Reactor 2 | . . . . . . . . . 2 Propulsion 25 | . 2 2 2 2 1 3 2 3 8 Treads 8 | . . . 1 2 . . . 3 2 Leg 8 | . . . . . . 1 2 . 5 Wheel 8 | . 2 2 1 . 1 2 . . . Hover . | . . . . . . . . . . Flight 1 | . . . . . . . . . 1 Utility 33 | . 2 2 3 8 1 10 2 4 1 Device 22 | . . 2 2 6 1 7 2 1 1 Storage 4 | . 1 . . 1 . 1 . 1 . Processor 2 | . 1 . . . . 1 . . . Hackware 2 | . . . . . . . . 2 . Protection 3 | . . . 1 1 . 1 . . . Artifact . | . . . . . . . . . . Weapon 44 | . 1 9 2 6 . 10 5 5 6 Energy Gun 15 | . . 4 2 5 . 1 2 1 . Energy Cannon 7 | . . . . . . 2 . 2 3 Ballistic Gun 15 | . 1 5 . 1 . 4 2 1 1 Ballistic Cannon 2 | . . . . . . . . 1 1 Launcher . | . . . . . . . . . . Special Weapon . | . . . . . . . . . . Impact Weapon . | . . . . . . . . . . Slashing Weapon 5 | . . . . . . 3 1 . 1 Piercing Weapon . | . . . . . . . . . . Special Melee Weapon . | . . . . . . . . . . Unidentified Prototypes 4 | . . . . 2 . 1 . . 1 Parts Lost 47 | . 1 3 . 1 2 7 2 1 30 Power 8 | . 1 1 . . 1 . . . 5 Propulsion 14 | . . 1 . . . 2 . . 11 Utility 11 | . . . . . 1 4 1 . 5 Weapon 14 | . . 1 . 1 . 1 1 1 9 Highest Loss Streak 15 | . 1 2 . 1 2 3 2 1 15 Average Slot Usage (%) 84 | . 98 98 93 91 46 66 80 84 73 Engine 2 | . 6 1 9 7 4 . . . 2 Core 4 | . 7 9 . . . 4 6 5 3 Treads 3 | . . . 7 15 . . . 4 5 Leg 4 | . 19 . . . . . 7 5 9 Wheel 12 | . 8 21 14 7 15 14 13 11 4 Device 10 | . . 7 9 15 7 11 12 11 9 Storage 6 | . 14 11 9 7 5 1 6 5 4 Processor 3 | . 12 3 . . . 3 6 5 4 Protection 2 | . . . 7 7 . 4 . . . Energy Gun 13 | . 14 21 18 18 11 6 10 10 4 Energy Cannon 1 | . . . . . . 1 6 5 5 Ballistic Gun 11 | . 14 21 18 10 . 8 8 5 4 Slashing Weapon 1 | . . . . . . 7 . . . Naked Turns . | . . . . . . . . . . Heaviest Build 130 | 12 88 97 103 117 98 55 38 112 130 Greatest Support 85 | 20 20 20 29 28 65 65 56 56 85 Greatest Overweight (x) 9 | . 4 9 4 4 1 1 . 5 4 Average Overweight (x) 1 | . 1 4 3 3 . . . . 1 Largest Inventory Capacity 25 | . 25 25 25 25 25 10 10 25 25 Average Capacity 17 | . 13 25 25 25 20 5 10 20 24 Most Carried 25 | . 10 25 25 25 25 7 10 20 18 Average Carried 14 | . 7 22 23 24 20 4 9 14 13 Final Capacity 25 | 8 25 25 25 25 5 10 10 25 5 Final Carried 25 | 6 10 23 25 25 5 6 10 19 4 Class Distribution -------------------- 31% | Mutant 21% | Scavenger-Skirmisher 16% | Gunner 11% | Tank 11% | Scavenger-Tank 5% | Scavenger-Mutant Dominant Class ---------------- Mutant | -10/Materials Gunner | -9/Materials Scavenger-Tank | -8/Materials Scavenger-Tank | -7/Factory Mutant | -7/Waste Mutant | -7/Factory Scavenger-Skirmisher | -6/Factory Scavenger-Skirmisher | -5/Factory Scavenger-Mutant | -4/Factory Resources | -11 -10 -9 -8 -7 -7 -7 -6 -5 -4 ----------- Run | Scr Mat Mat Mat Fac Was Fac Fac Fac Fac Matter Collected 2902 | 200 106 556 . 493 . 650 174 266 457 Remotely . | . . . . . . . . . . Salvage Created 5844 | . 379 1263 . 931 . 1254 309 624 1084 Parts 265 | . 23 81 . 42 . 56 12 16 35 Haulers Intercepted 11 | . 1 4 . . . 5 . . 1 Recyclers Shooed 11 | . 2 . . . . . . 1 8 Parts Field Recycled . | . . . . . . . . . . Retrieved Matter . | . . . . . . . . . . Parts Self-Destructed . | . . . . . . . . . . Prevented . | . . . . . . . . . . Kills | -11 -10 -9 -8 -7 -7 -7 -6 -5 -4 ------- Run | Scr Mat Mat Mat Fac Was Fac Fac Fac Fac Combat Hostiles Destroyed 94 | . 8 23 . 20 . 13 5 11 14 Melee 7 | . . . . . . 7 . . . Guns 71 | . 8 22 . 20 . 6 1 8 6 Cannons 11 | . . . . . . . 4 . 7 AOE 5 | . . 1 . . . . . 3 1 Classes Destroyed 12 | . 4 6 . 1 . 1 . . . Worker 6 | . . 1 . . . 3 . . 2 Builder 4 | . . 1 . . . 2 . 1 . Hauler 11 | . 1 4 . . . 5 . . 1 Recycler 9 | . 1 1 . 1 . 3 . 1 2 Operator 3 | . . 2 . . . . 1 . . Watcher 4 | . . 2 . . . 2 . . . Swarmer 22 | . 2 6 . 6 . . . 4 4 Grunt 46 | . 6 7 . 11 . 6 5 4 7 Brawler 3 | . . 2 . . . . . 1 . Sentry 15 | . . 8 . 2 . 2 . 2 1 Hunter 5 | . . . . . . 4 . . 1 Programmer 3 | . . . . 1 . 1 . . 1 Best Kill Streak 7 | . 2 5 . 5 . 7 5 4 6 Combat Bots Only 5 | . 2 5 . 4 . 2 5 4 5 Max Kills in Single Turn 5 | . 1 2 . 2 . 5 1 3 2 Gunslinging 1 | . . . . 1 . . . . . Exploded 3 | . . 1 . . . . . 3 1 Melee 1 | . . . . . . 1 . . . Uniques/NPCs Destroyed . | . . . . . . . . . . Combat | -11 -10 -9 -8 -7 -7 -7 -6 -5 -4 -------- Run | Scr Mat Mat Mat Fac Was Fac Fac Fac Fac Damage Taken 8275 | . 324 792 . 914 221 1786 411 634 3193 Core 1156 | . 57 129 . 60 . 207 92 148 463 Absorbed by Shields . | . . . . . . . . . . Core Remaining (%) 82 | 100 77 67 100 . . 61 89 85 . Volleys Fired 279 | . 45 59 . 43 . 35 12 29 56 Largest 5 | . 2 4 . 4 . 4 4 4 5 Hottest 320 | . 60 156 . 191 . 206 206 265 320 Shots Fired 777 | . 89 192 . 162 . 88 39 65 142 Gun 678 | . 89 192 . 162 . 80 27 52 76 Cannon 99 | . . . . . . 8 12 13 66 Launcher . | . . . . . . . . . . Special . | . . . . . . . . . . Kinetic 407 | . 45 102 . 67 . 57 15 34 87 Thermal 341 | . 44 90 . 95 . 31 24 24 33 Explosive . | . . . . . . . . . . Electromagnetic 29 | . . . . . . . . 7 22 Robot Hit Streak 17 | . 14 10 . 14 . 17 10 6 13 Robot Miss Streak 19 | . 2 2 . 3 . 6 2 3 19 Penetration Max 1 | . . . . . . 1 . 1 1 Secondary Targets 5 | . . 2 . 2 . 1 . . . Max Gunslinging Chain 1 | . . 1 . 1 . 1 . . . Shots Hit Robots 512 | . 59 112 . 93 . 83 26 35 104 Core Hits 286 | . 21 56 . 37 . 41 11 22 98 Critical Kills 4 | . . 1 . . . . 1 1 1 Critical Parts Destroyed 4 | . . 1 . . . . . 1 2 Critical Strikes 19 | . . 5 . 2 . 4 1 2 5 Burn 9 | . . 3 . 2 . 2 . . 2 Meltdown 1 | . . . . . . . 1 . . Destroy 7 | . . 2 . . . . . 2 3 Sever 2 | . . . . . . 2 . . . Melee Attacks 60 | . . . . . . 59 . . 1 Impact . | . . . . . . . . . . Slashing 60 | . . . . . . 59 . . 1 Piercing . | . . . . . . . . . . Sneak Attacks 8 | . . . . . . 8 . . . Combat Hostiles . | . . . . . . . . . . Follow-up Attacks 2 | . . . . . . 2 . . . Damage Inflicted 13836 | . 610 1867 . 1920 . 3802 614 1697 3326 Guns 8048 | . 610 1618 . 1914 . 1018 385 737 1766 Cannons 1591 | . . . . . . 128 229 202 1032 Explosions 1917 | . . 249 . . . 424 . 758 486 Melee 2248 | . . . . . . 2206 . . 42 Ramming 32 | . . . . 6 . 26 . . . Kinetic 5012 | . 276 831 . 687 . 694 167 542 1815 Thermal 5897 | . 334 787 . 1227 . 876 447 1077 1149 Explosive 249 | . . 249 . . . . . . . Electromagnetic 398 | . . . . . . . . 78 320 Impact . | . . . . . . . . . . Slashing 2248 | . . . . . . 2206 . . 42 Piercing . | . . . . . . . . . . Highest Corruption 19 | . . . . 1 16 19 . . 3 Average Corruption 8 | . . . . 1 9 16 . . 2 Corruption Purged . | . . . . . . . . . . Effects 73 | . . . . 4 5 63 . . 1 Message Errors 15 | . . . . 2 2 11 . . . Matter Fused 19 | . . . . . . 19 . . . Heat Flow Errors 7 | . . . . . 1 6 . . . Energy Discharges 12 | . . . . 2 1 9 . . . Data Loss (minor) 8 | . . . . . . 7 . . 1 Data Loss (major) 1 | . . . . . 1 . . . . Misfires 3 | . . . . . . 3 . . . Alerts 1 | . . . . . . 1 . . . Misdirections 1 | . . . . . . 1 . . . Weapon Failures 6 | . . . . . . 6 . . . Overload Shots . | . . . . . . . . . . Overflow Damage 703 | . . 116 . . . 341 . 78 168 Projectiles . | . . . . . . . . . . Explosions 387 | . . 116 . . . 35 . 78 158 Melee 316 | . . . . . . 306 . . 10 Knockbacks 19 | . . . . . . . . 2 17 Impact . | . . . . . . . . . . Kinetic 16 | . . . . . . . . 2 14 Secondary 3 | . . . . . . . . . 3 Self-Inflicted Damage 298 | . . 99 . 3 . 81 . 81 34 Shots 5 | . . 1 . . . 1 . 2 1 Rammed 3 | . . . . 1 . 2 . . . Targets Rammed 3 | . . . . 1 . 2 . . . Kicked . | . . . . . . . . . . Crushed . | . . . . . . . . . . Highest Temperature 532 | . 108 460 . 406 214 532 108 54 334 Average Temperature 96 | . 31 104 . 110 129 117 21 32 125 Received Heat Transfer 2042 | . 156 156 . 318 . 588 198 99 527 Effects 13 | . . 5 . 1 . 3 . . 4 Shutdowns 1 | . . . . . . 1 . . . Energy Bleed 2 | . . . . 1 . 1 . . . Interference 6 | . . 3 . . . . . . 3 Matter Decay 2 | . . 1 . . . 1 . . . Short Circuit 1 | . . 1 . . . . . . . Damage (minor) 1 | . . . . . . . . . 1 Siege Activations . | . . . . . . . . . . Robots Corrupted . | . . . . . . . . . . Combat Hostiles . | . . . . . . . . . . Parts Fried . | . . . . . . . . . . Impact Corruptions . | . . . . . . . . . . Robots Melted 1 | . . . . . . . 1 . . Combat Hostiles . | . . . . . . . . . . Parts Melted 14 | . . 4 . 5 . 2 1 . 2 Heat Transferred 9862 | . 750 2339 . 2307 . 1229 783 994 1460 Parts Sabotaged . | . . . . . . . . . . Parts Stolen . | . . . . . . . . . . Parts Stripped . | . . . . . . . . . . Power Chain Reactions 1 | . . . . . . . . . 1 Missiles Intercepted . | . . . . . . . . . . Alert | -11 -10 -9 -8 -7 -7 -7 -6 -5 -4 ------- Run | Scr Mat Mat Mat Fac Was Fac Fac Fac Fac Peak Influence 615 | . 200 591 249 262 83 615 396 350 513 Initial 273 | . . 49 249 112 83 44 273 95 171 Average 199 | . 65 249 249 153 76 189 311 145 336 Maximum Alert Level 2 | . 1 2 1 1 . 2 1 1 2 Low Security (%) 61 | . 88 51 . 69 100 73 22 85 37 Level 1 25 | . 11 33 100 30 . . 77 14 15 Level 2 12 | . . 15 . . . 26 . . 46 Level 3 . | . . . . . . . . . . Level 4 . | . . . . . . . . . . Level 5 . | . . . . . . . . . . High Security . | . . . . . . . . . . Max Security . | . . . . . . . . . . Squads Dispatched 25 | . 3 2 . 4 . 8 3 1 4 Investigation 4 | . . . . 1 . 1 1 . 1 Extermination 3 | . . . . 1 . 1 1 . . Reinforcement 16 | . 3 2 . 2 . 4 1 1 3 Assault 1 | . . . . . . 1 . . . Garrison 1 | . . . . . . 1 . . . Intercept . | . . . . . . . . . . Construction Impeded 4 | . . . . . . 1 . 1 2 Haulers Reinforced 3 | . . . . 1 . 1 . . 1 Active Scanning Responses . | . . . . . . . . . . Cargo Convoy Interrupts . | . . . . . . . . . . Stealth | -11 -10 -9 -8 -7 -7 -7 -6 -5 -4 --------- Run | Scr Mat Mat Mat Fac Was Fac Fac Fac Fac Distress Signals 16 | . 3 3 . 2 . 2 . 2 4 Communications Jammed . | . . . . . . . . . . Distress Signals . | . . . . . . . . . . Times Spotted 172 | . 18 36 2 24 6 29 6 16 35 Peak Tracking Total 9 | . 4 6 1 5 6 4 4 6 9 Tactical Retreats 12 | . 2 3 . 3 . 3 . 1 . Traps | -11 -10 -9 -8 -7 -7 -7 -6 -5 -4 ------- Run | Scr Mat Mat Mat Fac Was Fac Fac Fac Fac Traps Triggered 3 | . . . . 1 . 1 . 1 . Indirectly . | . . . . . . . . . . Trap Hack Attempts . | . . . . . . . . . . Triggered . | . . . . . . . . . . Disarmed . | . . . . . . . . . . Reprogrammed . | . . . . . . . . . . Reused . | . . . . . . . . . . Traps Extracted . | . . . . . . . . . . Installed . | . . . . . . . . . . Triggered 2 | . . . . . . 2 . . . Machines | -11 -10 -9 -8 -7 -7 -7 -6 -5 -4 ---------- Run | Scr Mat Mat Mat Fac Was Fac Fac Fac Fac Machines Disabled 35 | . . 3 . . . 20 . 3 9 Max in Single Turn 18 | . . 3 . . . 18 . 2 . Garrison Access 1 | . . . . . . 1 . . . Machines Sabotaged . | . . . . . . . . . . Garrisons Compromised 1 | . . . . . . 1 . . . Overloaded Fab Kills . | . . . . . . . . . . Hacking | -11 -10 -9 -8 -7 -7 -7 -6 -5 -4 --------- Run | Scr Mat Mat Mat Fac Was Fac Fac Fac Fac Machines Accessed 18 | . . 3 . 4 . 5 2 1 3 Terminals 15 | . . 3 . 3 . 4 1 1 3 Fabricators 1 | . . . . 1 . . . . . Repair Stations . | . . . . . . . . . . Recycling Units 1 | . . . . . . . 1 . . Scanalyzers . | . . . . . . . . . . Garrison Access 1 | . . . . . . 1 . . . Total Hacks 36 | . . 3 . 8 . 8 4 2 11 Successful 15 | . . 1 . 2 . 3 2 1 6 Failed 21 | . . 2 . 6 . 5 2 1 5 Catastrophic 4 | . . . . 2 . . . . 2 Database Lockouts . | . . . . . . . . . . Manual 12 | . . . . 2 . 5 . . 5 Terminals 30 | . . 3 . 4 . 7 3 2 11 Fabricators 4 | . . . . 4 . . . . . Repair Stations . | . . . . . . . . . . Recycling Units 1 | . . . . . . . 1 . . Scanalyzers . | . . . . . . . . . . Garrison Access 1 | . . . . . . 1 . . . Terminal Hacks 9 | . . 1 . 2 . 1 1 1 3 Record 1 | . . . . . . . . . 1 Alert Level 6 | . . 1 . 1 . 1 1 1 1 Unreport Threat 1 | . . . . 1 . . . . . Hauler Manifests 1 | . . . . . . . . . 1 Fabricator Hacks . | . . . . . . . . . . Repair Station Hacks . | . . . . . . . . . . Recycling Unit Hacks 1 | . . . . . . . 1 . . Retrieve Components 1 | . . . . . . . 1 . . Scanalyzer . | . . . . . . . . . . Garrison Access Hacks 1 | . . . . . . 1 . . . Seal Access 1 | . . . . . . 1 . . . Unauthorized Hacks 4 | . . . . . . 1 . . 3 Terminals 4 | . . . . . . 1 . . 3 Track 1 | . . . . . . . . . 1 Botnet 3 | . . . . . . 1 . . 2 Fabricators . | . . . . . . . . . . Repair Stations . | . . . . . . . . . . Recycling Units . | . . . . . . . . . . Scanalyzers . | . . . . . . . . . . Garrison Access . | . . . . . . . . . . Data Cores Recovered . | . . . . . . . . . . Used . | . . . . . . . . . . Hacking Detections 15 | . . 2 . 4 . 4 1 1 3 Full Trace Events 3 | . . . . 1 . . 1 . 1 Feedback Events 1 | . . . . 1 . . . . . Corruption 1 | . . . . 1 . . . . . Feedback Blocked . | . . . . . . . . . . Robot Schematics Acquired . | . . . . . . . . . . Robots Built . | . . . . . . . . . . Authchips . | . . . . . . . . . . Time . | . . . . . . . . . . Total Robot Build Rating . | . . . . . . . . . . Part Schematics Acquired . | . . . . . . . . . . Parts Built . | . . . . . . . . . . Authchips . | . . . . . . . . . . Time . | . . . . . . . . . . Total Part Build Rating . | . . . . . . . . . . Parts Repaired . | . . . . . . . . . . Time . | . . . . . . . . . . Parts Recycled . | . . . . . . . . . . Recycled Matter . | . . . . . . . . . . Retrieved Matter . | . . . . . . . . . . Retrieved Components 2 | . . . . . . . 2 . . Parts Scanalyzed . | . . . . . . . . . . Part Schematics Acquired . | . . . . . . . . . . Parts Damaged . | . . . . . . . . . . Bothacking | -11 -10 -9 -8 -7 -7 -7 -6 -5 -4 ------------ Run | Scr Mat Mat Mat Fac Was Fac Fac Fac Fac Used RIF Installer . | . . . . . . . . . . Robots Hacked . | . . . . . . . . . . Non-combat . | . . . . . . . . . . Combat . | . . . . . . . . . . Robot Hacks Applied . | . . . . . . . . . . Relay Couplers Released 4 | . . . . . . . . . 4 Programmers 4 | . . . . . . . . . 4 Fabnet Peak Effective % . | . . . . . . . . . . Robots Rewired 1 | . . . . . . . . . 1 Allies Hacked . | . . . . . . . . . . Hacks Repelled . | . . . . . . . . . . Allies | -11 -10 -9 -8 -7 -7 -7 -6 -5 -4 -------- Run | Scr Mat Mat Mat Fac Was Fac Fac Fac Fac Total Allies 1 | . . . . . . . . . 1 Largest Group 1 | . . . . . . . . . 1 Highest-Rated Group 56 | . . . . . . . . . 56 Highest-Rated Ally 56 | . . . . . . . . . 56 Total Orders . | . . . . . . . . . . Ally Attacks 5 | . . . . . . . . . 5 Total Damage 1497 | . . . . . . . . . 1497 Kills 4 | . . . . . . . . . 4 Allies Corrupted . | . . . . . . . . . . Allies Melted . | . . . . . . . . . . Intel | -11 -10 -9 -8 -7 -7 -7 -6 -5 -4 ------- Run | Scr Mat Mat Mat Fac Was Fac Fac Fac Fac Robot Analysis Total . | . . . . . . . . . . Derelict Logs Recovered . | . . . . . . . . . . Drone Launches . | . . . . . . . . . . Drone Recoveries . | . . . . . . . . . . Exploration | -11 -10 -9 -8 -7 -7 -7 -6 -5 -4 ------------- Run | Scr Mat Mat Mat Fac Was Fac Fac Fac Fac Turns Passed 6072 | . 657 1166 237 1056 118 1326 519 521 472 Spaces Moved 3729 | 1 395 617 151 557 98 917 441 361 191 Core 1 | . . . . . . . . . 1 Treads 1 | . . . . . . . . . 1 Legs 316 | 1 260 . . . . . . 1 54 Wheels 3411 | . 135 617 151 557 98 917 441 360 135 Hover . | . . . . . . . . . . Flight . | . . . . . . . . . . Fastest Speed 100 | 120 120 140 125 145 100 100 100 100 100 Average Speed 123 | 120 126 141 141 153 110 100 100 110 148 Slowest Speed 480 | 120 140 215 145 160 115 115 100 470 480 Overloaded Moves . | . . . . . . . . . . Propulsion Burnouts . | . . . . . . . . . . Robots Hopped . | . . . . . . . . . . Cave-ins Triggered . | . . . . . . . . . . Exploration Rate (%) 28 | 2 59 58 21 15 79 26 7 9 6 Regions Visited 9 Branch Regions . Pre-discovered Areas . | . . . . . . . . . . Known Exits Taken . | . . . . . . . . . . Unknown Exits Taken 7 | 1 1 1 1 . . 1 1 1 . Scrap Searched . | . . . . . . . . . . Spaces Dug 2 | . . . . . . 2 . . . Terrain Destroyed 123 | . . 15 . 1 . 41 3 50 13 Melee 2 | . . . . . . 2 . . . Projectile 17 | . . . . 1 . . 3 2 11 AOE 104 | . . 15 . . . 39 . 48 2 Terrain Rammed . | . . . . . . . . . . Walls Destroyed . | . . . . . . . . . . Machines Disabled . | . . . . . . . . . . Actions | -11 -10 -9 -8 -7 -7 -7 -6 -5 -4 --------- Run | Scr Mat Mat Mat Fac Was Fac Fac Fac Fac Total 4582 | . 469 818 181 664 112 1138 494 436 270 Wait 251 | . 16 77 . 28 4 91 15 19 1 Move 3722 | . 394 616 150 557 97 917 440 360 191 Hop . | . . . . . . . . . . Pick Up 65 | . 4 30 9 2 . 2 10 8 . Fast Attach 38 | . 2 2 2 2 . 19 3 3 5 Attach 33 | . 2 4 1 2 2 3 2 3 14 Detach 14 | . 2 . 2 . 5 2 1 2 . Swap 45 | . 2 9 4 14 . 5 4 7 . Drop 77 | . 2 21 13 15 4 9 7 5 1 Fire 279 | . 45 59 . 43 . 35 12 29 56 Melee 55 | . . . . . . 54 . . 1 Ram 2 | . . . . 1 . 1 . . . Kick . | . . . . . . . . . . Crush . | . . . . . . . . . . Escape Stasis . | . . . . . . . . . . Rewire 1 | . . . . . . . . . 1 Trap . | . . . . . . . . . . Miscellaneous . | . . . . . . . . . . Route ------- -11/Scrapyard -10/Materials (discovered 3 exits: *Mat x2 / [*Min]) -9/Materials (discovered 2 exits: *Mat / [*Min]) -8/Materials (discovered 2 exits: *Fac / [*Sto]) -7/Factory (discovered 2 exits: *Fac / [*Low]) -7/Waste -7/Factory (discovered 2 exits: *Fac x2) -6/Factory -5/Factory -4/Factory History --------- Turn | Location | Event 1 | -11/Scrapyard | Discovered new exit (range 0) 1 | -11/Scrapyard | Entered Materials 225 | -10/Materials | Discovered new exit (range 15) 315 | -10/Materials | Build established: Mutant 460 | -10/Materials | Discovered new exit (range 5) 590 | -10/Materials | Discovered new exit (range 7) 658 | -10/Materials | Entered another Materials area 658 | -9/Materials | Evolved 2 slots: Weapon x2 963 | -9/Materials | Build established: Gunner 1289 | -9/Materials | Discovered new exit (range 8) 1818 | -9/Materials | Discovered new exit (range 5) 1824 | -9/Materials | Entered another Materials area 1824 | -8/Materials | Evolved 2 slots: Propulsion x1, Utility x1 1824 | -8/Materials | Discovered new exit (range 14) 1996 | -8/Materials | Discovered new exit (range 4) 2061 | -8/Materials | Entered Factory 2061 | -7/Factory | Evolved 2 slots: Propulsion x1, Utility x1 2771 | -7/Factory | Build established: Scavenger-Tank 2862 | -7/Factory | Discovered new exit (range 9) 3010 | -7/Factory | Discovered new exit (range 6) 3117 | -7/Factory | Sucked down chute 3117 | -7/Factory | Entered Waste 3132 | -7/Waste | EMP discharged 3132 | -7/Waste | System corruption reached 10% 3152 | -7/Waste | Spotted C-40 Crusher 3175 | -7/Waste | Spotted C-40 Crusher 3177 | -7/Waste | Spotted C-40 Crusher 3179 | -7/Waste | Spotted C-40 Crusher 3183 | -7/Waste | Spotted C-40 Crusher 3191 | -7/Waste | Crushed by Compactor (0 parts destroyed, 1 dropped) 3194 | -7/Waste | Spotted C-40 Crusher 3207 | -7/Waste | Crushed by Compactor (1 part destroyed, 1 dropped) 3220 | -7/Waste | Discovered new exit (range 15) 3232 | -7/Waste | EMP discharged 3235 | -7/Waste | Entered Factory 3420 | -7/Factory | Build established: Mutant 3577 | -7/Factory | Garrison activated, responded to threat 3642 | -7/Factory | Lost 3 parts (1n2u) 3814 | -7/Factory | Discovered new exit (range 3) 4435 | -7/Factory | First assault squad dispatched 4505 | -7/Factory | Discovered new exit (range 9) 4561 | -7/Factory | Entered another Factory area 4561 | -6/Factory | Evolved 2 slots: Propulsion x2 4732 | -6/Factory | Build established: Scavenger-Skirmisher 4809 | -6/Factory | Discovered new exit (range 15) 5080 | -6/Factory | Entered another Factory area 5080 | -5/Factory | Evolved 2 slots: Utility x2 5554 | -5/Factory | Discovered new exit (range 14) 5601 | -5/Factory | Entered another Factory area 5601 | -4/Factory | Evolved 2 slots: Power x1, Weapon x1 5901 | -4/Factory | Lost 15 parts (3p5n3u4w) 6073 | -4/Factory | Self-destructed Last Messages --------------- 06067_ U-05 Engineer lays Concrete. 06067_ Penetrated by Slug. 06067_ Flexi-carbon Leg destroyed. 06067_ Penetrated by Slug. 06067_ U-05 Engineer lays Concrete. 06069_ Destroyed Flexi-carbon Leg. 06069_ C-30 ARC bursts open, deploying its payload. 06069_ H-77 Assassin unfolds itself. 06069_ U-05 Engineer lays Concrete. 06069_ Penetrated by Slug. 06069_ Slug penetrates Wall. 06069_ U-05 Engineer lays Concrete. 06070_ K-01 Serf collects debris. 06070_ Slug penetrates Wall. 06070_ U-05 Engineer lays Concrete. 06071_ K-01 Serf collects debris. 06071_ U-05 Engineer destroyed. 06071_ U-05 Engineer lays Concrete. 06071_ U-05 Engineer destroyed. 06072_ K-01 Serf collects debris. Map ----- +----------------------------------------------------+ | #????????????????????????????????????????????????? | | #????????????????????????????????????????????????? | | #????????????????????????????????????????????????? | | #????????????????????????????????????????????????? | | #????????????????????????????????????????????????? | | #????? ????????????????????????????????????????? | | ##### ????????????????????????????????????????? | | #????????????????????????????????????? | | ????????????????#????????????????????? | | ? ???????????????#???????????????????? | | + "?? ????? ?????????????????????????? | | # "????????? ????????????????????????? | | # "???"??????????#???????????????????? | | # "?????????????# ???????????????????? | | # ?????????? ??# #???????????????????? | | # ? ???? ?????# #?#??????????????????? | | # ??????????# ##????????????????????? | | #######################??????????????? | | =k%=u%| #????#?????????? | | !!=%%!= u ##? #?????????? | | *=!=! u # #?????????? | | % % % u!% + ???????????? | | %% %=% #??????????????? | | u %u%%[ #??????????????? | | %%%uu!* #??????????????? | | # ###################@# #??????????????? | | # # ## #??#?????## # #??????????????? | | ## #### ###?# #???????#### #??????????????? | | #####?###?????##??????????? #?#????????????? | | ???????????????????#???#??? #?????????????? | | ??????????????????#??#?????? =#?????????????? | | ?????????????##?#????#?????? ????????????? | | ?#??#?????#??#?????????????? % ???????????? | | ???????????#???????????????? ??????????? | | ??##???#??????????#?????????? ???????????? | | ?????#???????????????????#??? ???????????? | | ??????????????????????????? ? #?????????????? | | ????????????????????????????? ???????????????? | | ?????????????????????????????##??????????????????? | | ????#???????????#?????????????#??????????????????? | | ????????????????????????? ???????????????????????? | | ?????????????????????????????????????????????????? | | ?????????????????????????????????????????????????? | | ?????????????????????????????????????????????????? | | ?????????????????????????????????????????????????? | | ?????????????????????????????????????????????????? | | ?????????????????????????????????????????????????? | | ?????????????????????????????????????????????????? | | ?????????????????????????????????????????????????? | | ?????????????????????????????????????????????????? | +----------------------------------------------------+ Best States ------------- Heat Dissipation 81 Energy Generation 37 Energy Capacity 290 Matter Stores 300 Matter Capacity 300 Sight Range 16 Terrain Scan Range 20 Terrain Scan Density 10 Additional Mass Support 9 Armor Coverage 600 Evasion (%) 55 Targeting Accuracy 5 Recoil Reduction 2 Offensive Hacking 20 Item Schematics ----------------- None Robot Schematics ------------------ None Fabricated ------------ Nothing Alien Tech Used ----------------- None Achievements -------------- None Challenges ------------ None Game ------ Seed SpacefoldTrackerRailgun Manual? 0 Play Time 00:55:52 Cumulative 198.0 hours Start 2021.12.15 @ 20:48:49 End 2021.12.15 @ 21:48:49 Sessions 1 Manual Loads 0 Difficulty Rogue Special Mode None Game No. 266 Rogue 266 Adventurer 0 Explorer 0 Win Type - Total 2 Types 2/0/0/0/0/0/0/0/0 Lore% 61 Gallery% 74 Achievement% 53 Wizard Run 0 Options --------- ASCII 0 Keyboard 1 Movement Vi Keybinds 0 Fullscreen 1 Font 18/SmallcapsGlow Map View 76x50 Tactical HUD 1 Map Filters NONE Filters NONE Steam 1 RUN: 1b73d56c-c7bc-4c01-ae10-5e0cd3a8c50e